{"text_format":"1","workbook":"xlsx","n_sheets":2,"sheets":["List1","List2"],"not_rendered":{"charts":0,"images":1,"macros":1,"external_links":0,"defined_names":3,"comments":0,"pivot_tables":0},"unopened":[],"bounds":{"document_bytes":16777216,"sheet_cells":100000,"rows_first":2000,"rows_last":500,"rows_between":2000,"halvings":0,"cell_chars":16384,"cell_head_chars":4096},"cells_cut":0,"cells_raw":0,"read":"whole","date_system":"1900"}

{"sheet":"List1","index":0,"n_rows":40,"n_cols":15,"rows_kept":40,"cut":false,"hidden":false,"merged":[[39,0,39,6],[38,2,38,5],[38,7,38,8],[38,10,38,12],[34,0,34,3],[35,0,35,12],[34,4,34,12],[36,0,36,1],[36,3,36,12],[30,0,31,3],[30,4,30,6],[30,7,30,12],[32,0,32,3],[32,4,32,6],[32,7,32,12],[27,0,27,12],[28,0,29,3],[28,4,28,6],[28,7,28,12],[29,4,29,12],[26,4,26,6],[26,7,26,8],[14,0,16,2],[24,4,24,6],[24,7,24,8],[21,0,21,3],[21,4,21,8],[23,0,23,3],[23,4,23,6],[23,7,23,8],[2,0,2,12],[17,0,19,2],[13,4,13,11],[20,4,20,11],[7,0,7,1],[9,0,9,1],[6,2,6,12],[9,2,9,6],[6,0,6,1],[8,0,8,1],[10,0,10,1],[10,2,10,3],[10,4,10,6],[10,7,10,8],[12,0,12,1],[12,2,12,3],[7,4,7,6],[7,7,7,8],[7,9,7,10],[33,0,33,12],[4,0,4,11],[12,4,12,6],[12,7,12,8],[10,9,10,11],[12,9,12,11],[11,0,11,1],[11,2,11,3],[11,4,11,6],[11,7,11,8],[11,9,11,11],[25,4,25,6],[25,7,25,8]]}
[null,null,null,"Ministerstvo školství, mládeže a tělovýchovy"]
[]
["Žádost o zápis do seznamu výzkumných organizací"]
[]
["č.j. žadatele",null,null,null,null,null,null,null,null,null,null,null,null,{"$f":"IF(O37,IF(LEN(M5)=0,\"Č.j. není vyplněno\",\"\"),\"\")","v":""}]
["A",null,null,null,null,null,null,"Ž a d a t e l"]
["Název",null,null,null,null,null,null,null,null,null,null,null,null,{"$f":"IF(O37,IF(LEN(C7)=0,\"Název není vyplněn\",\"\"),\"\")","v":""}]
["Sídlo                 PSČ",null,null,"ulice",null,null,null,"č.p. / č. or.",null,null,null,"město",null,{"$f":"IF(O37,IF(OR(ISBLANK(C8),ISBLANK(E8),ISBLANK(J8),ISBLANK(M8)),\"Údaje sídla nejsou korektně vyplněny\",\"\"),\"\")","v":""}]
["IČO",null,null,null,null,null,null,null,null,null,null,null,null,{"$f":"IF(O37,IF(LEN(C9)<>8,\"IČ není správně vyplněno\",\"\"),\"\")","v":""}]
["Právní forma",null,null,null,null,null,null,null,null,null,null,null,null,{"$f":"IF(O37,IF(O10=1,\"Nebyla vybrána právní forma\",\"\"),\"\")","v":""},1]
["Statutární orgán",null,"Jméno a příjmení ",null,null,null,null,"funkce ",null,null,null,null,null,{"$f":"IF(O37,IF(OR(LEN(E11)=0,LEN(J11)=0),\"Jméno nebo funkce není vyplněno\",\"\"),\"\")","v":""}]
[null,null,"Jméno a příjmení ",null,null,null,null,"funkce "]
[null,null,"Jméno a příjmení ",null,null,null,null,"funkce "]
["B",null,null,null,"H l a v n í   c í l   v ý z k u m n é   o r g a n i z a c e",null,null,null,null,null,null,null,null,null,0]
["provádět nezávisle",null,null,null,null,"základní výzkum",null,null,null,null,null,null,null,{"$f":"IF(O37,IF(O14=1,IF(AND(O15=2,O16=1,O17=1),\"Nebyl vybrán druh výzkumu\",\"\"),\"\"),\"\")","v":""},0]
[null,null,null,null,null,"průmyslový výzkum",null,null,null,null,null,null,null,null,0]
[null,null,null,null,null,"experimentální vývoj",null,null,null,null,null,null,null,{"$f":"IF(O14=2,IF(OR(O15=1,O16=2,O17=2),\"Nesmí být vybrán druh výzkumu ANO\",\"\"),\"\")","v":""},0]
["veřejně šířit výsledky",null,null,null,null,"výukou",null,null,null,null,null,null,null,{"$f":"IF(O37,IF(O18=1,IF(AND(O19=1,O20=2,O21=1),\"Nebylo vybráno šíření výsledků\",\"\"),\"\"),\"\")","v":""},0]
[null,null,null,null,null,"publikováním",null,null,null,null,null,null,null,{"$f":"IF(O18=2,IF(AND(O19=1,O20=2,O21=1),\"\",\"Formy šíření výsledků nesmí být ANO\"),\"\")","v":""},0]
[null,null,null,null,null,"transferem znalostí",null,null,null,null,null,null,null,null,0]
["C",null,null,null,"E k o n o m i c k á   p o v a h a   ž a d a t e l e",null,null,null,null,null,null,null,null,null,0]
["Žadatel vykonává",null,null,null,null,null,null,null,null,null,null,null,null,{"$f":"IF(O37,IF(O22=1,\"Nebyla vybrána činnost\",\"\"),\"\")","v":""},1]
["D",null,null,null,null,null,null,"S e z n a m   p ř í l o h"]
["Zakladatelské právní jednání",null,null,null,null,null,null,"soubor/URL",null,null,null,null,null,{"$f":"IF(O37,IF(O24=1,\"Nebyl vybrán druh přílohy\",\"\"),\"\")","v":""},1]
["Zprávy o činnosti",null,null,"za r. 2014",null,null,null,"soubor/URL",null,null,null,null,null,{"$f":"IF(O37,IF(O25=1,\"Nebyl vybrán druh přílohy\",\"\"),\"\")","v":""},1]
[null,null,null,"za r. 2015",null,null,null,"soubor/URL",null,null,null,null,null,{"$f":"IF(O37,IF(O26=1,\"Nebyl vybrán druh přílohy\",\"\"),\"\")","v":""},1]
[null,null,null,"za r. 2016",null,null,null,"soubor/URL",null,null,null,null,null,{"$f":"IF(O37,IF(O27=1,\"Nebyl vybrán druh přílohy\",\"\"),\"\")","v":""},1]
[null,null,null,null,null,null,null,null,null,null,null,null,null,{"$f":"IF(AND(O37,O10<>11),IF(OR(LEN(J24)=0,LEN(J25)=0,LEN(J26)=0,LEN(J27)=0,),\"Nebylo zadáno jméno souboru/URL\",\"\"),\"\")","v":""}]
["Účetní dokument o vedení odděleného účetnictví pro hospodářské činnosti *)",null,null,null,"e-příloha - název souboru",null,null,null,null,null,null,null,null,{"$f":"IF(AND(O37,O22=3),IF(LEN(H29)=0,\"Nebyl uveden název e-přílohy\",\"\"),\"\")","v":""}]
[]
["Vnitřní předpis o nakládání s výsledky VaV",null,null,null,"e-příloha - název souboru",null,null,null,null,null,null,null,null,{"$f":"IF(O37,IF(LEN(H31)=0,\"Nebyl uveden název e-přílohy\",\"\"),\"\")","v":""}]
[]
["Čestné prohlášení",null,null,null,"e-příloha - název souboru",null,null,null,null,null,null,null,null,{"$f":"IF(O37,IF(LEN(H33)=0,\"Nebyl uveden název e-přílohy\",\"\"),\"\")","v":""}]
[]
["Prohlášení o pravdivosti údajů:"]
["Prohlašuji, že informace v této žádosti jsou uvedeny přesně, pravdivě a úplně a že jsem si vědom/a případných právních následků, pokud bude prokázán opak."]
["Zaškrtněte:",null,null,null,null,null,null,null,null,null,null,null,null,{"$f":"IF(O37,\"\",\"Nebylo potvrzeno prohlášení\")","v":"Nebylo potvrzeno prohlášení"},false]
["Upozornění: pokud se po zaškrtnutí pole C37 objeví ve sloupci N hlášení chyby, je nutno příslušný údaj opravit"]
[null,"V ",null,null,null,null,"Dne"]
["*) Předkládá se pouze, když C = činnosti hospodářské i nehospodářské",null,null,null,null,null,null,null,null,null,null,"podpis oprávněné osoby"]

{"sheet":"List2","index":1,"n_rows":12,"n_cols":3,"rows_kept":12,"cut":false,"hidden":false,"merged":[]}
["- výběr -","- výběr -","- výběr -"]
["NAD - Nadace","výhradně činnosti nehospodářské","e-příloha: zadá se jméno souboru přílohy"]
["OPS - Obecně prospěšná společnost","činnosti hospodářské i nehospodářské","URL: zadá se odkaz na dokument"]
["OSS - Organizační složka ČR","výhradně činnosti hospodářské","nepředkládá se (VVŠ a StVŠ)"]
["POO - Právnická osoba zapsaná v obchodním rejstříku"]
["SPO - Příspěvková organizace"]
["USC - Územní samosprávný celek"]
["UST - Ústav"]
["VVI - Veřejná výzkumná instituce"]
["ZSP - Zájmové sdružení právnických osob, občanské sdružení, spolek"]
["VVS - Veřejná nebo státní vysoká škola"]
["PON - Jiná právnická osoba"]